bitfinex/quotes_BTCUSD_20250422
["timestamp","ask_amount","ask_price","bid_price","bid_amount"]
[1745364203508,0.18310305,92843.0,92842.0,0.003]
[1745364204397,0.17410305,92843.0,92842.0,0.002]
[1745364204754,0.18110305,92843.0,92842.0,0.003]
[1745364205145,0.16310305,92843.0,92842.0,0.002]
[1745364205345,0.17210305,92843.0,92842.0,0.003]
[1745364208065,0.84722047,92843.0,92842.0,0.003]
[1745364208266,0.63180305,92843.0,92842.0,0.003]
[1745364208617,0.61580305,92843.0,92842.0,0.001]
[1745364209034,0.6513439,92843.0,92842.0,0.003]
[1745364209264,0.85576132,92843.0,92842.0,0.002]
[1745364209460,0.02531276,92834.0,92831.0,0.001]
[1745364209662,0.1228439,92832.0,92831.0,0.001]
[1745364209889,0.2353639,92832.0,92831.0,0.001]
[1745364210113,0.22082305,92832.0,92831.0,0.001]
[1745364210309,0.22193178,92832.0,92831.0,0.001]
[1745364210997,0.22193178,92832.0,92814.0,0.000425]
[1745364211198,0.22193178,92832.0,92814.0,0.00056411]
[1745364211199,0.10830305,92826.0,92814.0,0.00056411]
[1745364211395,0.10830305,92819.0,92814.0,0.00056411]
[1745364211599,0.00110873,92818.0,92814.0,0.00056411]
[1745364211827,0.10830305,92817.0,92814.0,0.00056411]
[1745364212002,0.00110873,92816.0,92814.0,0.00056411]
[1745364212197,0.10830305,92815.0,92814.0,0.00056411]
[1745364213305,0.10941178,92815.0,92814.0,0.00056411]
[1745364213524,0.11230305,92815.0,92814.0,0.00056411]
[1745364213960,0.11230305,92815.0,92814.0,0.00156411]
[1745364214139,0.11341178,92815.0,92814.0,0.00156411]
[1745364214340,0.11341178,92815.0,92814.0,0.00056411]
[1745364214508,0.11830305,92815.0,92814.0,0.00056411]
[1745364215828,0.01,92815.0,92814.0,0.00056411]
[1745364217060,0.004,92815.0,92814.0,0.00056411]
[1745364217492,0.007,92815.0,92814.0,0.00156411]
[1745364217905,0.003,92815.0,92814.0,0.00156411]
[1745364218121,0.008,92815.0,92814.0,0.00156411]
[1745364221575,0.11630305,92815.0,92814.0,0.00156411]
[1745364221791,0.16400305,92815.0,92814.0,0.00156411]
[1745364224531,0.11630305,92815.0,92814.0,0.00156411]
[1745364224745,0.008,92815.0,92814.0,0.00156411]
[1745364225181,0.11630305,92815.0,92814.0,0.00156411]
[1745364225413,0.008,92815.0,92814.0,0.00156411]
[1745364225975,0.008,92815.0,92814.0,0.00256411]
[1745364230406,0.008,92815.0,92814.0,0.00471875]
[1745364230826,0.008,92815.0,92814.0,0.00256411]
[1745364240641,0.008,92815.0,92814.0,0.00471869]
[1745364240836,0.008,92815.0,92814.0,0.00256411]
[1745364241143,0.008,92815.0,92814.0,0.00471867]
[1745364241786,0.008,92815.0,92814.0,0.00256411]
[1745364245394,0.008,92815.0,92814.0,0.00471869]
[1745364245601,0.00670001,92815.0,92814.0,0.00471869]
[1745364245806,0.08596466,92840.0,92814.0,0.00471869]
[1745364246050,0.10941178,92839.0,92820.0,0.27536301]
[1745364246250,0.10941178,92839.0,92814.0,0.00156411]
[1745364246477,0.10941178,92839.0,92815.0,0.149455]
[1745364247232,0.11041178,92839.0,92815.0,0.149455]
[1745364247838,0.11041178,92839.0,92814.0,0.00256411]
[1745364248020,0.11041178,92839.0,92814.0,0.00156411]
[1745364248273,0.11041178,92839.0,92815.0,0.225303]
[1745364248484,0.11041178,92839.0,92815.0,0.001]
[1745364248693,0.10941178,92839.0,92815.0,0.001]
[1745364248913,0.10941178,92839.0,92820.0,0.27536301]
[1745364249121,0.10941178,92839.0,92821.0,0.00215444]
[1745364249335,0.10941178,92839.0,92820.0,0.27536301]
[1745364249951,0.10941178,92839.0,92815.0,0.001]
[1745364250164,0.11041178,92839.0,92816.0,0.353431]
[1745364250573,0.11041178,92839.0,92815.0,0.395961]
[1745364250776,0.11141178,92839.0,92815.0,0.395961]
[1745364250978,0.11141178,92839.0,92816.0,0.032297]
[1745364251404,0.11141178,92839.0,92817.0,0.00215444]
[1745364251609,0.10830305,92839.0,92820.0,0.27536301]
[1745364251797,0.10830305,92839.0,92821.0,0.32988144]
[1745364252010,0.10830305,92839.0,92820.0,0.27536301]
[1745364252011,0.0499,92843.0,92829.0,0.27536301]
[1745364252217,0.0468,92852.0,92830.0,0.00215425]
[1745364252422,0.10830305,92851.0,92835.0,0.27536301]
[1745364252781,0.00110873,92850.0,92835.0,0.27536301]
[1745364252979,0.10941178,92850.0,92835.0,0.27536301]
[1745364253139,0.10941178,92850.0,92835.0,0.30765501]
[1745364253474,0.10941178,92850.0,92835.0,0.032292]
[1745364253708,0.10830305,92850.0,92836.0,0.00215409]
[1745364254094,0.001,92839.0,92836.0,0.00215409]
[1745364255148,0.001,92839.0,92835.0,0.032292]
[1745364255730,0.003,92839.0,92836.0,0.00215409]
[1745364256301,0.10830305,92850.0,92836.0,0.00215409]
[1745364256558,0.003,92839.0,92836.0,0.00215409]
[1745364257577,0.003,92839.0,92835.0,0.032292]
[1745364257760,0.003,92839.0,92836.0,0.001]
[1745364258237,0.00110873,92849.0,92836.0,0.001]
[1745364258450,0.00110873,92849.0,92831.0,0.032292]
[1745364258650,0.00110873,92849.0,92836.0,0.002]
[1745364258651,0.007,92839.0,92836.0,0.002]
[1745364258867,0.15510305,92838.0,92836.0,0.002]
[1745364259127,0.15510305,92838.0,92836.0,0.001]
[1745364259309,0.15510305,92838.0,92836.0,0.002]
[1745364259689,0.15510305,92838.0,92836.0,0.001]
[1745364260070,0.15910305,92838.0,92836.0,0.002]
[1745364260516,0.15910305,92838.0,92836.0,0.001]
[1745364261150,0.0508,92838.0,92836.0,0.001]
[1745364261321,0.0508,92838.0,92819.0,0.08618901]
[1745364261524,0.0538,92838.0,92836.0,0.001]
[1745364262102,0.0498,92838.0,92836.0,0.001]
[1745364262306,0.0468,92838.0,92820.0,0.36155051]
[1745364262503,0.0468,92838.0,92821.0,0.314109]
[1745364262708,0.0468,92838.0,92822.0,0.00212273]
[1745364263485,0.0508,92838.0,92836.0,0.001]
[1745364264102,0.0538,92838.0,92836.0,0.002]
[1745364264727,0.0498,92838.0,92836.0,0.001]
[1745364265712,0.0538,92838.0,92836.0,0.002]
[1745364266124,0.15649602,92837.0,92836.0,0.002]
[1745364267541,0.15649602,92837.0,92836.0,0.001]
[1745364267695,0.15949602,92837.0,92836.0,0.001]
[1745364268104,0.16349602,92837.0,92836.0,0.002]
[1745364271050,0.007,92837.0,92836.0,0.002]
[1745364273377,0.007,92837.0,92828.0,0.01454085]
[1745364273508,0.007,92837.0,92828.0,2.2973509]
[1745364273716,0.007,92837.0,92830.0,0.01454085]
[1745364273988,0.007,92837.0,92832.0,0.01454085]
[1745364274227,0.007,92837.0,92818.0,0.01454085]
[1745364274228,0.003,92837.0,92818.0,0.01454085]
[1745364274447,0.003,92837.0,92818.0,1.378873]
[1745364274448,0.0476,92836.0,92818.0,1.378873]
[1745364274621,0.00269299,92835.0,92814.0,0.11264411]
[1745364274828,0.11099604,92835.0,92815.0,0.14206]
[1745364275416,0.11099604,92835.0,92818.0,0.002]
[1745364276809,0.11099604,92835.0,92819.0,0.00212302]
[1745364276959,0.001,92835.0,92816.0,0.01454085]
[1745364277174,0.001,92835.0,92820.0,0.27536301]
[1745364277371,0.0476,92843.0,92822.0,0.01454085]
[1745364277701,0.0482,92847.0,92830.0,0.27536301]
[1745364277955,0.0482,92847.0,92825.0,0.01454085]
[1745364278231,0.001,92835.0,92827.0,0.01454085]
[1745364278459,0.0482,92847.0,92829.0,0.01454085]
[1745364278668,0.001,92843.0,92829.0,0.01454085]
[1745364278849,0.001,92843.0,92830.0,0.27536301]
[1745364279086,0.001,92843.0,92831.0,0.01666283]
[1745364279293,0.001,92843.0,92832.0,1.130616]
[1745364279729,0.001,92843.0,92832.0,0.987262]
[1745364279930,0.001,92843.0,92833.0,0.114366]
[1745364280136,0.00269246,92853.0,92832.0,0.130021]
[1745364280363,0.08596466,92854.0,92832.0,0.130021]
[1745364280757,0.00269246,92853.0,92832.0,0.130021]
[1745364280960,0.002,92835.0,92833.0,0.113335]
[1745364281079,0.002,92835.0,92823.0,0.08618474]
[1745364281080,0.002,92835.0,92824.0,0.01454085]
[1745364281284,0.002,92843.0,92826.0,0.01454085]
[1745364281536,0.002,92843.0,92827.0,0.395339]
[1745364281758,0.002,92843.0,92827.0,0.366348]
[1745364281910,0.002,92843.0,92828.0,0.308377]
[1745364282109,0.002,92843.0,92829.0,0.116088]
[1745364282334,0.002,92843.0,92827.0,0.183502]
[1745364282536,0.002,92843.0,92827.0,0.110857]
[1745364282714,0.002,92843.0,92827.0,0.101557]
[1745364282911,0.11099551,92853.0,92827.0,0.101557]
[1745364283324,0.001,92835.0,92827.0,0.101557]
[1745364284126,0.0495,92840.0,92827.0,0.102557]
[1745364284350,0.0495,92840.0,92828.0,0.531649]
[1745364284739,0.0495,92840.0,92827.0,0.573989]
[1745364284913,0.001,92835.0,92827.0,0.574989]
[1745364285117,0.001,92835.0,92828.0,0.531629]
[1745364286300,0.0495,92840.0,92828.0,0.531629]
[1745364286454,0.0505,92840.0,92827.0,0.571885]
[1745364287270,0.0495,92840.0,92828.0,0.49326]
[1745364287480,0.0495,92840.0,92827.0,0.53776]
[1745364287679,0.001,92835.0,92827.0,0.331344]
[1745364287853,0.001,92835.0,92827.0,0.410282]
[1745364288057,0.001,92835.0,92827.0,0.411282]
[1745364288263,0.001,92835.0,92828.0,0.45635921]
[1745364288459,0.001,92835.0,92829.0,0.396706]
[1745364288662,0.001,92835.0,92828.0,0.454237]
[1745364289431,0.0481,92838.0,92820.0,0.11188]
[1745364289661,0.11099611,92837.0,92827.0,0.001]
[1745364289866,0.001,92835.0,92827.0,0.001]
[1745364290070,0.10830305,92837.0,92821.0,0.00212298]
[1745364290272,0.10830305,92837.0,92822.0,0.599533]
[1745364290481,0.001,92835.0,92824.0,0.01454085]
[1745364290712,0.0495,92845.0,92825.0,0.88005739]
[1745364290919,0.0495,92845.0,92826.0,2.45188385]
[1745364291112,0.001,92835.0,92827.0,0.415899]
[1745364292073,0.001,92835.0,92821.0,0.01454085]
[1745364292285,0.001,92835.0,92823.0,0.01454085]
[1745364292536,0.001,92835.0,92825.0,0.01454085]
[1745364292731,0.0495,92845.0,92826.0,0.36761]
[1745364292902,0.0495,92845.0,92826.0,0.01454085]
[1745364293110,0.001,92835.0,92827.0,0.168209]
[1745364293310,0.001,92835.0,92827.0,0.126986]
[1745364293732,0.001,92835.0,92826.0,0.01454085]
[1745364293912,0.001,92835.0,92827.0,0.486744]
[1745364294353,0.0495,92845.0,92827.0,0.32589]
[1745364294559,0.0495,92845.0,92827.0,0.389261]
[1745364294905,0.0495,92845.0,92827.0,0.366378]
[1745364295113,0.0495,92845.0,92828.0,0.293424]
[1745364295323,0.0495,92845.0,92826.0,0.01554085]
[1745364295773,0.001,92835.0,92823.0,0.01454085]
[1745364295984,0.001,92835.0,92827.0,0.001]
[1745364296384,0.001,92835.0,92823.0,0.01454085]
[1745364296538,0.0505,92845.0,92823.0,0.01454085]
[1745364296539,0.0505,92845.0,92825.0,0.01454085]
[1745364296723,0.0505,92845.0,92826.0,0.223471]
[1745364296929,0.0505,92845.0,92826.0,0.001]
[1745364297168,0.0495,92845.0,92823.0,0.01454085]
[1745364297375,0.001,92835.0,92823.0,0.01454085]
[1745364297579,0.001,92835.0,92825.0,0.01454085]
[1745364297781,0.001,92835.0,92826.0,0.23082]
[1745364298042,0.001,92835.0,92825.0,0.01454085]
[1745364298249,0.001,92835.0,92826.0,0.338054]
[1745364298471,0.001,92835.0,92824.0,0.01454085]
[1745364298674,0.0495,92845.0,92824.0,0.40593285]
[1745364298887,0.0495,92845.0,92826.0,0.01454085]
[1745364299085,0.0505,92845.0,92826.0,0.01454085]
[1745364299449,0.001,92835.0,92824.0,0.01454085]
[1745364299658,0.0495,92845.0,92826.0,0.01454085]
[1745364300063,0.0505,92845.0,92824.0,0.001]
[1745364300433,0.0483,92839.0,92825.0,0.214109]
[1745364300648,0.16059616,92838.0,92820.0,0.11188]
[1745364300872,0.16059616,92838.0,92824.0,0.001]
[1745364301102,0.0496,92838.0,92824.0,0.00312308]
[1745364301292,0.0496,92838.0,92824.0,0.001]
[1745364301972,0.27536301,92860.0,92824.0,0.001]
[1745364301973,0.0008494,92869.0,92835.0,0.08596466]
[1745364302221,0.0008494,92875.0,92835.0,0.08596466]
[1745364302222,0.0008494,92875.0,92874.0,0.01454085]
[1745364302442,0.00142061,92924.0,92899.0,0.27536301]
[1745364302663,0.0008504,92924.0,92901.0,0.01454085]
[1745364302888,0.0008504,92924.0,92903.0,0.01454085]
[1745364303145,0.0008504,92924.0,92904.0,0.00215225]
[1745364303364,0.0008504,92924.0,92903.0,0.023276]
[1745364303365,0.00142061,92924.0,92903.0,0.023276]
[1745364303549,0.00146306,92909.0,92903.0,0.023276]
[1745364303815,0.00146306,92909.0,92897.0,0.08611636]
[1745364304035,0.00746306,92909.0,92901.0,0.08711232]
[1745364304265,0.00746306,92909.0,92906.0,0.08610853]
[1745364304481,0.00746306,92909.0,92908.0,0.08610668]
[1745364304953,0.00746306,92909.0,92908.0,0.12690118]
[1745364305180,0.00746306,92909.0,92908.0,0.13436773]
[1745364305625,0.01546306,92909.0,92908.0,0.13436773]
[1745364305852,0.02046306,92909.0,92908.0,0.04926105]
[1745364306072,0.02046306,92909.0,92908.0,0.00846655]
[1745364306073,0.01246306,92909.0,92908.0,0.00846655]
[1745364306494,0.01846306,92909.0,92908.0,0.00946655]
[1745364306709,0.01846306,92909.0,92908.0,0.05026105]
[1745364307998,0.01846306,92909.0,92908.0,0.00946655]
[1745364308232,0.01846306,92909.0,92908.0,0.05026105]
[1745364308493,0.0008504,92924.0,92923.0,0.08609278]
[1745364308705,0.00098922,92924.0,92921.0,0.08609405]
[1745364308927,0.00098922,92924.0,92923.0,0.0407945]
[1745364309357,0.00098922,92924.0,92923.0,0.04826105]
[1745364309800,0.00098922,92924.0,92923.0,0.05634306]
[1745364310161,0.00198922,92924.0,92923.0,0.05634306]
[1745364310388,0.00298922,92924.0,92923.0,0.05634306]
[1745364310779,0.00298922,92924.0,92923.0,0.01770057]
[1745364310982,0.00298922,92924.0,92923.0,1.76863407]
[1745364311186,0.00298922,92924.0,92923.0,1.72069206]
[1745364312612,0.00298922,92924.0,92923.0,1.32930506]
[1745364315252,0.00298922,92924.0,92923.0,1.19483706]
[1745364315757,0.00298922,92924.0,92923.0,0.9863341]
[1745364315981,0.00298922,92924.0,92923.0,0.00797253]
[1745364316448,0.11129227,92924.0,92919.0,0.4135]
[1745364316667,0.00298922,92924.0,92919.0,0.4135]
[1745364317115,0.00298922,92924.0,92920.0,0.00215236]
[1745364317371,0.00298922,92924.0,92919.0,0.4135]
[1745364317762,0.00198922,92924.0,92919.0,0.4135]
[1745364318003,0.00198922,92924.0,92919.0,0.4145]
[1745364318417,0.00098922,92924.0,92919.0,0.4135]
[1745364318648,0.00098922,92924.0,92920.0,0.00215215]
[1745364319284,0.00098922,92924.0,92919.0,0.4145]
[1745364319492,0.00098922,92924.0,92919.0,0.4135]
[1745364319931,0.00098922,92924.0,92919.0,0.4165]
[1745364320126,0.00098922,92924.0,92919.0,0.4135]
[1745364320515,0.00098922,92924.0,92911.0,0.08610302]
[1745364320646,0.00098922,92924.0,92912.0,0.00215235]
[1745364321376,0.00098922,92924.0,92920.0,0.001]
[1745364321895,0.00098922,92924.0,92915.0,0.00788793]
[1745364322256,0.00098922,92924.0,92914.0,0.08610112]
[1745364322405,0.00098922,92924.0,92916.0,0.08609909]
[1745364322816,0.00098922,92924.0,92920.0,0.001]
[1745364323006,0.00098922,92924.0,92914.0,0.08610112]
[1745364323204,0.00098922,92924.0,92914.0,0.08910112]
[1745364323606,0.00098922,92924.0,92923.0,0.08609278]
[1745364324645,0.001,92929.0,92928.0,0.08608815]
[1745364325034,0.001,92929.0,92928.0,0.37183403]
[1745364325174,0.001,92929.0,92928.0,0.76568411]
[1745364325390,0.001,92929.0,92928.0,0.68719011]
[1745364325800,0.001,92929.0,92928.0,0.68919011]
[1745364326298,0.001,92929.0,92928.0,0.67050311]
[1745364326611,0.001,92929.0,92928.0,0.58518311]
[1745364327263,0.001,92929.0,92928.0,0.12548311]
[1745364327481,0.001,92929.0,92928.0,0.002]
[1745364328055,0.001,92929.0,92928.0,0.00942663]
[1745364330841,0.0008494,92930.0,92928.0,0.00942663]
[1745364331741,0.0008494,92930.0,92929.0,0.00742663]
[1745364331895,0.0018494,92930.0,92929.0,0.00742663]
[1745364332546,0.0008494,92930.0,92929.0,0.00742663]
[1745364334017,0.0018494,92930.0,92929.0,0.00742663]
[1745364334919,0.0018494,92930.0,92929.0,0.00957859]
[1745364335373,0.001,92949.0,92929.0,0.00957859]
[1745364335374,0.00057021,92942.0,92929.0,0.00742663]
[1745364335601,0.001,92949.0,92929.0,0.00742663]
[1745364335744,0.00141961,92947.0,92929.0,0.00742663]
[1745364336410,0.00141961,92947.0,92930.0,0.00742663]
[1745364337449,0.001,92942.0,92931.0,0.00742663]
[1745364337779,0.0008494,92947.0,92931.0,0.00742663]
[1745364338006,0.0493,92943.0,92932.0,0.00742663]
[1745364338531,0.0483,92943.0,92932.0,0.00742663]
[1745364338731,0.001,92942.0,92933.0,0.00742663]
[1745364339533,0.001,92942.0,92934.0,0.00742663]
[1745364339742,0.001,92942.0,92935.0,0.08823356]
[1745364340065,0.0008494,92947.0,92935.0,0.08823356]
[1745364340272,0.002,92943.0,92935.0,0.08823356]
[1745364340488,0.002,92943.0,92936.0,0.00742663]
[1745364340860,0.0008494,92947.0,92936.0,0.00742663]
[1745364341412,0.0008494,92947.0,92937.0,0.00742663]
[1745364342285,0.0008494,92947.0,92945.0,0.08607166]
[1745364342513,0.0008494,92947.0,92946.0,0.01669237]
[1745364342738,0.0008494,92947.0,92946.0,2.52478537]
[1745364342977,0.0008494,92947.0,92946.0,1.21507148]
[1745364343185,0.0008494,92947.0,92946.0,0.80812248]
[1745364344403,0.0008494,92947.0,92946.0,0.81112248]
[1745364344626,0.0008494,92947.0,92946.0,0.26709348]
[1745364344845,0.0008494,92947.0,92946.0,0.26409348]
[1745364345081,0.0008494,92947.0,92946.0,0.26609348]
[1745364345752,0.0008486,92967.0,92954.0,0.08606373]
[1745364345970,0.00098772,92962.0,92961.0,0.08605759]
[1745364346404,0.00098772,92962.0,92961.0,0.10274951]
[1745364346868,0.00098772,92962.0,92961.0,0.11017614]
[1745364347067,0.0008484,92985.0,92962.0,0.01454085]
[1745364347277,0.0008484,92985.0,92970.0,0.55072602]
[1745364347486,0.0008484,92985.0,92984.0,0.0860363]
[1745364347699,0.00057021,93010.0,92988.0,0.0860326]
[1745364347936,0.0463,93011.0,92988.0,0.0860326]
[1745364347937,0.00131258,93002.0,92988.0,0.0860326]
[1745364348152,0.00131258,93002.0,92989.0,0.00742663]
[1745364348741,0.00131258,93002.0,92990.0,0.08603075]
[1745364349056,0.00131258,93002.0,92992.0,0.08602856]
[1745364349272,0.00131258,93002.0,92991.0,0.09560674]
[1745364349485,0.00131258,93002.0,92997.0,0.08602389]
[1745364349709,0.00131258,93002.0,92998.0,0.08602324]
[1745364349921,0.00131258,93002.0,92996.0,0.08817549]
[1745364350129,0.00231258,93002.0,92996.0,0.08817549]
[1745364350577,0.00131258,93002.0,92997.0,0.00742663]
[1745364350947,0.00331258,93002.0,92998.0,0.00742663]
[1745364351968,0.00331258,93002.0,92999.0,0.00742663]
[1745364352376,0.00131258,93002.0,92999.0,0.00742663]
[1745364352575,0.0004242,93000.0,92999.0,0.00742663]
[1745364352925,0.0004242,93000.0,92980.0,0.11132]
[1745364353130,0.0004242,93000.0,92986.0,0.08603378]
[1745364353332,0.0004242,93000.0,92987.0,0.345922]
[1745364353743,0.0004242,93000.0,92988.0,0.00741599]
[1745364354378,0.0004242,93000.0,92989.0,0.00741599]
[1745364354636,1.0004242,93000.0,92989.0,0.00741599]
[1745364355397,1.0004242,93000.0,92990.0,0.00741599]
[1745364356527,1.0004242,93000.0,92991.0,0.00741599]
[1745364357516,1.0004242,93000.0,92986.0,0.08603378]
[1745364357517,1.0004242,93000.0,92992.0,0.00741599]
[1745364357719,1.0004242,93000.0,92994.0,0.08602675]
[1745364357911,1.0014242,93000.0,92994.0,0.08602623]
[1745364358123,0.9974242,93000.0,92999.0,0.10050551]
[1745364358320,0.67413177,93000.0,92999.0,0.29698128]
[1745364358520,0.63259177,93000.0,92999.0,0.29483099]
[1745364358854,0.57890999,93000.0,92999.0,3.89705398]
[1745364359053,0.57790999,93000.0,92999.0,3.89705398]
[1745364359288,0.51984821,93000.0,92999.0,3.89705398]
[1745364359698,0.46616643,93000.0,92999.0,3.89705398]
[1745364359908,0.39198465,93000.0,92999.0,3.89903975]
[1745364360113,0.36598465,93000.0,92999.0,3.89703975]
[1745364360320,0.36228465,93000.0,92999.0,3.89703975]
[1745364360557,0.36228465,93000.0,92999.0,3.90501873]
[1745364360769,0.30960287,93000.0,92999.0,3.81905407]
[1745364360979,0.25592109,93000.0,92999.0,3.81905407]
[1745364361199,0.25492109,93000.0,92999.0,3.81905407]
[1745364361407,0.20123931,93000.0,92999.0,0.72108807]
[1745364361614,0.20123931,93000.0,92999.0,0.83832962]
[1745364361900,0.00157021,93029.0,92999.0,1.2518298]
[1745364362151,0.0473,93062.0,92999.0,1.2518298]
[1745364362152,0.0485,93065.0,93048.0,0.10051798]
[1745364362367,0.0473,93071.0,93069.0,0.08595721]
[1745364362587,0.001,93109.0,93062.0,0.01074552]
[1745364362588,0.0473,93097.0,93062.0,0.01074552]
[1745364362794,0.001,93109.0,93059.0,0.27536301]
[1745364362795,0.001,93109.0,93086.0,0.09668443]
[1745364363007,0.00113902,93089.0,93088.0,0.08594018]
[1745364363216,0.00113902,93089.0,93069.0,0.00821491]
[1745364363437,0.00113902,93089.0,93076.0,0.08595042]
[1745364363655,0.00113902,93089.0,93077.0,0.16225641]
[1745364363859,0.00113902,93089.0,93078.0,1.52526185]
[1745364364092,0.00113902,93089.0,93081.0,0.08594664]
[1745364364312,0.00113902,93089.0,93088.0,0.01454085]
[1745364364522,0.00113902,93089.0,93088.0,0.63168578]
[1745364364743,0.00113902,93089.0,93088.0,0.02192878]
[1745364365388,0.001,93109.0,93093.0,0.01454085]
[1745364365644,0.00146252,93109.0,93104.0,0.0859247]
[1745364365827,0.00146252,93109.0,93105.0,0.16290271]
[1745364366054,0.00146252,93109.0,93105.0,0.00214771]
[1745364366269,0.00146252,93109.0,93094.0,0.00738793]
[1745364366476,0.00146252,93109.0,93095.0,0.30130593]
[1745364366674,0.00146252,93109.0,93095.0,0.00738793]
[1745364366913,0.00057021,93108.0,93095.0,0.00738793]
[1745364367129,0.00057021,93108.0,93071.0,0.01074448]
[1745364367130,0.10830305,93107.0,93096.0,0.00738793]
[1745364367342,0.00057021,93106.0,93096.0,0.00738793]
[1745364367548,0.10830305,93105.0,93096.0,0.00738793]
[1745364367783,0.00673226,93115.0,93102.0,0.0107409]
[1745364367997,7e-05,93146.0,93126.0,0.01073813]
[1745364368209,7e-05,93146.0,93129.0,0.01073779]
[1745364368421,7e-05,93146.0,93138.0,0.08589343]
[1745364368638,7e-05,93146.0,93130.0,0.00214693]
[1745364368639,7e-05,93146.0,93130.0,0.08590071]
[1745364368848,7e-05,93146.0,93136.0,0.08589534]
[1745364369053,7e-05,93146.0,93137.0,0.95763813]
[1745364369260,7e-05,93146.0,93131.0,0.00738793]
[1745364369538,0.15560305,93145.0,93131.0,0.00738793]
[1745364370375,0.15560305,93145.0,93103.0,0.0859255]
[1745364370376,0.15560305,93145.0,93104.0,0.01454085]
[1745364370578,0.15560305,93145.0,93098.0,0.08596466]
[1745364370579,0.10830305,93137.0,93098.0,0.08596466]
[1745364370788,0.10830305,93137.0,93099.0,0.132923]
[1745364371170,0.10830305,93137.0,93104.0,0.08592455]
[1745364371371,0.0483,93145.0,93100.0,0.00945107]
[1745364371372,0.11116,93140.0,93121.0,0.08596466]
[1745364371550,0.21946305,93140.0,93122.0,0.00214745]
[1745364371751,0.5188299,93140.0,93110.0,0.01454085]
[1745364371953,0.21946305,93139.0,93110.0,0.104546]
[1745364372150,0.21946305,93139.0,93110.0,0.19046577]
[1745364372475,0.21946305,93139.0,93099.0,0.00803278]
[1745364372681,0.21946305,93139.0,93100.0,0.67807479]
[1745364372849,0.41052685,93130.0,93101.0,0.57845]
[1745364373054,0.10830305,93129.0,93099.0,0.652]
[1745364373251,0.10830305,93129.0,93100.0,0.0021479]
[1745364373496,0.10830305,93129.0,93101.0,0.750712]
[1745364373698,0.10830305,93129.0,93098.0,0.10685141]
[1745364373699,0.10830305,93129.0,93116.0,0.08596466]
[1745364373927,0.10830305,93129.0,93102.0,0.00729726]
[1745364374300,0.10830305,93129.0,93110.0,0.002]
[1745364374684,0.10830305,93129.0,93102.0,0.00729726]
[1745364374889,0.10930305,93129.0,93103.0,0.00729726]
[1745364375094,0.10830305,93129.0,93103.0,0.00729726]
[1745364375498,0.0943,93128.0,93103.0,0.00729726]
[1745364375710,0.41052685,93120.0,93103.0,0.00729726]
[1745364375917,0.10830305,93119.0,93099.0,0.00729726]
[1745364376130,0.10830305,93119.0,93099.0,0.17238326]
[1745364376329,0.10830305,93119.0,93099.0,0.00729726]
[1745364377214,0.11116,93139.0,93099.0,0.00729726]
[1745364377215,0.0484,93163.0,93114.0,0.01454085]
[1745364377382,0.0484,93163.0,93136.0,0.08589589]
[1745364377595,0.0484,93163.0,93142.0,0.08588953]
[1745364377811,0.0484,93163.0,93144.0,0.08588851]
[1745364378048,0.0484,93163.0,93144.0,0.99814033]
[1745364378254,0.0484,93163.0,93144.0,1.11958041]
[1745364378407,0.001,93189.0,93144.0,1.11958041]
[1745364378408,0.001,93189.0,93144.0,1.46253213]
[1745364378621,0.0089243,93209.0,93199.0,0.08583783]
[1745364378834,0.0484,93256.0,93199.0,0.08583783]
[1745364378835,0.33542773,93280.0,93240.0,0.001]
[1745364379054,0.33542773,93280.0,93210.0,0.08582696]
[1745364379055,0.00799026,93285.0,93246.0,0.001]
[1745364379260,0.0004635,93280.0,93256.0,0.001]
[1745364379462,0.0004635,93280.0,93258.0,0.001]
[1745364379668,0.10830305,93279.0,93263.0,0.001]
[1745364379885,0.10830305,93279.0,93268.0,0.001]
[1745364380097,0.10830305,93279.0,93267.0,0.001]
[1745364380308,0.0004635,93280.0,93240.0,0.02118087]
[1745364380309,0.0107219,93267.0,93247.0,0.001]
[1745364380601,0.10830305,93266.0,93256.0,0.001]
[1745364380799,0.10830305,93266.0,93230.0,0.41052685]
[1745364380800,0.11168,93287.0,93270.0,0.001]
[1745364381062,0.0145435,93300.0,93240.0,0.42125186]
[1745364381063,0.11168,93298.0,93279.0,0.001]
[1745364381479,0.10976655,93280.0,93275.0,0.001]
[1745364381707,0.10830305,93279.0,93272.0,0.001]
[1745364382412,0.0024635,93280.0,93277.0,0.001]
[1745364382625,0.0145435,93300.0,93299.0,0.15128667]
[1745364382626,0.0131224,93300.0,93299.0,0.15128667]
[1745364382841,0.001,93309.0,93308.0,0.051]
[1745364383069,0.0462,93367.0,93340.0,0.001]
[1745364383070,0.57329254,93360.0,93340.0,0.001]
[1745364383281,0.57329254,93350.0,93335.0,0.001]
[1745364383545,0.01782312,93367.0,93335.0,0.001]
[1745364383546,0.10830305,93349.0,93346.0,0.34345082]
[1745364383770,0.0139646,93393.0,93392.0,0.001]
[1745364384198,0.01442744,93393.0,93387.0,0.001]
[1745364384409,0.1204,93392.0,93373.0,0.001]
[1745364384632,0.01442744,93393.0,93373.0,0.001]
[1745364384633,0.0004233,93374.0,93373.0,0.001]
[1745364384931,0.0004233,93374.0,93346.0,0.05]
[1745364385136,0.01071065,93365.0,93346.0,0.05]
[1745364385361,0.01071065,93365.0,93302.0,0.0488]
[1745364385362,0.1204,93367.0,93360.0,0.05]
[1745364385584,7e-05,93399.0,93360.0,0.05214223]
[1745364385801,7e-05,93399.0,93373.0,0.06454085]
[1745364386029,0.57329254,93390.0,93373.0,0.09575229]
[1745364386265,0.1204,93379.0,93352.0,0.05]
[1745364386491,0.1204,93379.0,93368.0,0.05]
[1745364386715,0.1204,93383.0,93373.0,0.06454085]
[1745364386922,0.57329254,93380.0,93353.0,0.05]
[1745364387138,0.57329254,93380.0,93354.0,0.05]
[1745364387338,0.01070778,93390.0,93335.0,0.01896931]
[1745364387339,0.12032,93378.0,93370.0,0.05]
[1745364387556,0.12032,93378.0,93371.0,0.10830305]
[1745364387811,0.1248,93376.0,93371.0,0.10830305]
[1745364388010,0.1248,93376.0,93370.0,0.05]
[1745364388169,0.1248,93376.0,93370.0,0.15830305]
[1745364388376,0.1248,93376.0,93371.0,0.05]